fUSD/lending_fUSD_20240619
["ID","MTS","AMOUNT","RATE_DAILY","PERIOD"]
[329898710,1718806273792,-150.0,9.294e-05,2]
[329898711,1718806274739,-150.0,9.247e-05,2]
[329898712,1718806274851,159.30322223,8.829e-05,2]
[329898713,1718806274872,159.30322223,8.829e-05,2]
[329898714,1718806274900,647.51543879,8.829e-05,2]
[329898715,1718806302225,150.0,8.829e-05,2]
[329898716,1718806302248,150.0,8.829e-05,2]
[329898717,1718806302271,150.0,8.829e-05,2]
[329898718,1718806302293,150.0,8.829e-05,2]
[329898719,1718806302316,150.0,8.829e-05,2]
[329898720,1718806302340,150.0,8.829e-05,2]
[329898721,1718806302361,150.0,8.829e-05,2]
[329898722,1718806302414,150.0,8.829e-05,2]
[329898723,1718806302523,150.0,8.829e-05,2]
[329898724,1718806302602,150.0,8.829e-05,2]
[329898725,1718806302651,150.0,8.829e-05,2]
[329898726,1718806302699,150.0,8.829e-05,2]
[329898727,1718806302746,150.0,8.829e-05,2]
[329898728,1718806302794,150.0,8.829e-05,2]
[329898729,1718806302842,150.0,8.829e-05,2]
[329898730,1718806302873,17543.50088991,8.829e-05,2]
[329898731,1718806305174,150.0,8.829e-05,2]
[329898732,1718806305195,150.0,8.829e-05,2]
[329898733,1718806305218,150.0,8.829e-05,2]
[329898734,1718806305240,150.0,8.829e-05,2]
[329898735,1718806305262,150.0,8.829e-05,2]
[329898736,1718806305285,150.0,8.829e-05,2]
[329898737,1718806305307,150.0,8.829e-05,2]
[329898738,1718806305331,150.0,8.829e-05,2]
[329898739,1718806305353,150.0,8.829e-05,2]
[329898740,1718806305376,150.0,8.829e-05,2]
[329898741,1718806305398,150.0,8.829e-05,2]
[329898742,1718806305420,150.0,8.829e-05,2]
[329898743,1718806305442,150.0,8.829e-05,2]
[329898744,1718806305465,150.0,8.829e-05,2]
[329898745,1718806305490,150.0,8.829e-05,2]
[329898746,1718806305513,150.0,8.829e-05,2]
[329898747,1718806305536,150.0,8.829e-05,2]
[329898748,1718806305558,150.0,8.829e-05,2]
[329898749,1718806305581,150.0,8.829e-05,2]
[329898750,1718806305603,150.0,8.829e-05,2]
[329898751,1718806305626,150.0,8.829e-05,2]
[329898752,1718806305648,150.0,8.829e-05,2]
[329898753,1718806305670,150.0,8.829e-05,2]
[329898754,1718806305691,150.0,8.829e-05,2]
[329898755,1718806305716,150.0,8.829e-05,2]
[329898756,1718806305738,150.0,8.829e-05,2]
[329898757,1718806305762,150.0,8.829e-05,2]
[329898758,1718806305785,104725.92572449,8.829e-05,2]
[329898759,1718806306272,150.0,8.829e-05,2]
[329898760,1718806306293,150.0,8.829e-05,2]
[329898761,1718806306314,150.0,8.829e-05,2]
[329898762,1718806306337,915.16009841,8.829e-05,2]
[329898763,1718806312929,150.0,8.828e-05,2]
[329898764,1718806312950,150.0,8.828e-05,2]
[329898765,1718806312971,150.0,8.828e-05,2]
[329898766,1718806312993,150.0,8.828e-05,2]
[329898767,1718806313014,150.0,8.828e-05,2]
[329898768,1718806313035,150.0,8.828e-05,2]
[329898769,1718806313056,150.0,8.828e-05,2]
[329898770,1718806313077,150.0,8.828e-05,2]
[329898771,1718806313101,150.0,8.828e-05,2]
[329898772,1718806313121,150.0,8.828e-05,2]
[329898773,1718806313142,150.0,8.828e-05,2]
[329898774,1718806313163,150.0,8.828e-05,2]
[329898775,1718806313184,150.0,8.828e-05,2]
[329898776,1718806313205,150.0,8.828e-05,2]
[329898777,1718806313226,150.0,8.828e-05,2]
[329898778,1718806313247,150.0,8.828e-05,2]
[329898779,1718806313269,150.0,8.828e-05,2]
[329898780,1718806313290,150.0,8.828e-05,2]
[329898781,1718806313311,150.0,8.828e-05,2]
[329898782,1718806313332,150.0,8.828e-05,2]
[329898783,1718806313356,150.0,8.828e-05,2]
[329898784,1718806313377,150.0,8.828e-05,2]
[329898785,1718806313398,150.0,8.828e-05,2]
[329898786,1718806313419,150.0,8.828e-05,2]
[329898787,1718806313440,150.0,8.828e-05,2]
[329898788,1718806313460,150.0,8.828e-05,2]
[329898789,1718806313482,150.0,8.828e-05,2]
[329898790,1718806313503,150.0,8.828e-05,2]
[329898791,1718806313523,150.0,8.828e-05,2]
[329898792,1718806313544,150.0,8.828e-05,2]
[329898793,1718806313565,150.0,8.828e-05,2]
[329898794,1718806313586,150.0,8.828e-05,2]
[329898795,1718806313608,150.0,8.828e-05,2]
[329898796,1718806313629,150.0,8.828e-05,2]
[329898797,1718806313650,150.0,8.828e-05,2]
[329898798,1718806313672,150.0,8.828e-05,2]
[329898799,1718806313693,150.0,8.828e-05,2]
[329898800,1718806313713,150.0,8.828e-05,2]
[329898801,1718806313734,248.93841026,8.828e-05,2]
[329898802,1718806313755,150.0,8.828e-05,2]
[329898803,1718806313776,150.0,8.828e-05,2]
[329898804,1718806313798,150.0,8.828e-05,2]
[329898805,1718806313819,150.0,8.828e-05,2]
[329898806,1718806313840,150.0,8.828e-05,2]
[329898807,1718806313862,150.0,8.828e-05,2]
[329898808,1718806313883,150.0,8.828e-05,2]
[329898809,1718806313905,150.0,8.828e-05,2]
[329898810,1718806313930,248.93841026,8.828e-05,2]
[329898811,1718806313952,156.27480679,8.828e-05,2]
[329898815,1718806320718,290.20612561,8.829e-05,2]
[329898816,1718806321664,1421.79179088,6.622e-05,2]
[329898817,1718806323193,2736.51875636,8.829e-05,2]
[329898818,1718806328060,977.24120895,8.829e-05,2]
[329898819,1718806336790,290.20612561,8.829e-05,2]
[329898820,1718806336933,363.38195109,8.829e-05,2]
[329898821,1718806341668,600.0,6.622e-05,2]
[329898822,1718806352978,375.87144954,8.829e-05,2]
[329898823,1718806360717,190.92812378,8.829e-05,2]
[329898825,1718806426001,280855.0,0.00025999,90]
[329898826,1718806508110,173913.0,0.00025999,90]
[329898827,1718806859295,3037.147715,8.996e-05,2]
[329898829,1718807065274,701.06,8.219e-05,2]
[329898830,1718807089028,85269.92062184,8.996e-05,2]
[329898831,1718807104706,56846.6137479,8.996e-05,2]
[329898832,1718807144160,47372.17812325,8.996e-05,2]
[329898833,1718807149402,65400.76304512,8.996e-05,2]
[329898834,1718807151036,155.21612264,9e-05,2]
[329898835,1718807158393,-260.05177364,9.016e-05,2]
[329898836,1718807158418,-364.59006207,9.016e-05,2]
[329898837,1718807158439,-4622.10525761,9.017e-05,2]
[329898838,1718807158461,-1262.49708637,9.017e-05,2]
[329898839,1718807158484,-254.00234334,9.017e-05,2]
[329898841,1718807170392,2340.17611498,9.017e-05,2]
[329898842,1718807174078,502.2026044,9.017e-05,2]
[329898843,1718807175345,394.37475759,8.996e-05,2]
[329898844,1718807175366,10000.0,8.996e-05,2]
[329898845,1718807175387,10000.0,8.996e-05,2]
[329898846,1718807175408,4286.53004462,8.996e-05,2]
[329898847,1718807175873,1278.9757457,9.017e-05,2]
[329898848,1718807178195,155.0,9.017e-05,2]
[329898849,1718807178583,1798.31974733,9.017e-05,2]
[329898850,1718807186151,348.35621855,9.017e-05,2]
[329898851,1718807190452,2132.8182438,8.973e-05,2]
[329898852,1718807190474,1350.0718162,8.973e-05,2]
[329898853,1718807192257,155.0,9.017e-05,2]
[329898854,1718807195445,8494.9281838,9.017e-05,2]
[329898855,1718807195466,10000.0,9.017e-05,2]
[329898856,1718807195487,6185.97661841,9.017e-05,2]
[329898858,1718807206198,232.7247431,9.017e-05,2]
[329898859,1718807210196,155.0,9.017e-05,2]
[329898860,1718807213334,3426.29863849,9.017e-05,2]
[329898861,1718807213357,10000.0,9.017e-05,2]
[329898862,1718807213378,10000.0,9.017e-05,2]
[329898863,1718807213400,1254.60616372,9.017e-05,2]
[329898864,1718807217478,8745.39383628,9.017e-05,2]
[329898871,1718807271279,3600.298183,8.968e-05,2]
[329898873,1718807301850,24680.90480221,8.968e-05,2]
[329898875,1718807319851,24680.90480221,8.968e-05,2]
[329898876,1718807323867,47267.2928828,8.968e-05,2]
[329898878,1718807343978,24680.90480221,8.968e-05,2]
[329898885,1718807369880,24680.90480221,8.968e-05,2]
[329898887,1718807383850,24680.90480221,8.968e-05,2]
[329898889,1718807404249,24680.90480221,8.968e-05,2]
[329898890,1718807423853,24680.90480221,8.968e-05,2]
[329898892,1718807432527,-449.77064763,9.003e-05,2]
[329898894,1718807432537,-155.0,9.004e-05,2]
[329898896,1718807432547,-368.63608156,9.004e-05,2]
[329898898,1718807432557,-300.0,9.004e-05,2]
[329898901,1718807432567,-150.0,9.004e-05,2]
[329898903,1718807432576,-523.30694462,9.004e-05,2]
[329898906,1718807432586,-2133.20382619,9.005e-05,2]
[329898909,1718807432599,-693.53658943,9.005e-05,2]
[329898912,1718807432609,-158.59770655,9.005e-05,2]
[329898915,1718807432618,-1000.0,9.005e-05,2]
[329898918,1718807432631,-2091.37939923,9.007e-05,2]
[329898920,1718807432643,-1020.26296023,9.007e-05,2]
[329898922,1718807432653,-294.87759736,9.007e-05,2]
[329898924,1718807432663,-661.17670577,9.012e-05,2]
[329898926,1718807432676,-661.17670577,9.012e-05,2]
[329898928,1718807432686,-348.35621855,9.017e-05,2]
[329898930,1718807432695,-238.12068345,9.017e-05,2]
[329898932,1718807432704,-948.686561,9.017e-05,2]
[329898934,1718807432714,-260.05177364,9.045e-05,2]
[329898936,1718807432724,-577.83069042,9.046e-05,2]
[329898938,1718807432734,-2180.66010381,9.047e-05,2]
[329898940,1718807432746,-269.0000005,9.047e-05,2]
[329898944,1718807433022,-113.08665301,9.047e-05,2]
[329898945,1718807433032,-391.88,9.073e-05,2]
[329898946,1718807433041,-88.58685968,9.145e-05,2]
[329898947,1718807433053,-2540.300792,9.145e-05,2]
[329898948,1718807433063,-276.68995786,9.193e-05,2]
[329898949,1718807433075,-300.0,9.193e-05,2]
[329898950,1718807433087,-2212.17871038,9.193e-05,2]
[329898951,1718807433096,-201.36,9.219e-05,2]
[329898952,1718807433107,-160.92330524,9.294e-05,2]
[329898953,1718807433116,-77237.2017475,9.34e-05,2]
[329898954,1718807433126,-2445.45,9.364e-05,2]
[329898955,1718807433136,-1913.89,9.397e-05,2]
[329898956,1718807433145,-1000.0,9.521e-05,2]
[329898957,1718807433155,-170.76,9.596e-05,2]
[329898958,1718807433166,-216.06,9.596e-05,2]
[329898959,1718807433179,-250.0,9.651e-05,2]
[329898960,1718807433188,-321.53,9.661e-05,2]
[329898961,1718807433197,-6561.31,9.67e-05,2]
[329898962,1718807433208,-909.67,9.67e-05,2]
[329898963,1718807433218,-569.73,9.67e-05,2]
[329898964,1718807433228,-150.99,9.67e-05,2]
[329898966,1718807433239,-3434.88611122,9.67e-05,2]
[329898973,1718807433505,-1429.93388878,9.67e-05,2]
[329898974,1718807433516,-1000.0,9.68e-05,2]
[329898975,1718807433526,-1839.77,9.68e-05,2]
[329898976,1718807433535,-8552.53,9.68e-05,2]
[329898977,1718807433545,-250.0,9.68e-05,2]
[329898978,1718807433556,-3647.25,9.747e-05,2]
[329898979,1718807433567,-176.49,9.785e-05,2]
[329898980,1718807433576,-420.0,9.904e-05,2]
[329898981,1718807433586,-210.0,9.904e-05,2]
[329898982,1718807433598,-561.06881336,0.0001,2]
[329898983,1718807433609,-299.97320991,0.0001,2]
[329898984,1718807433620,-4761.9773,0.0001,2]
[329898985,1718807433630,-953.28,0.00010092,2]
[329898986,1718807433640,-6074.91,0.00010127,2]
[329898987,1718807433651,-701.06,0.00010456,2]
[329898988,1718807433670,-500.0,0.000105,2]
[329898989,1718807434054,-500.0,0.000105,2]
[329898990,1718807434068,-500.0,0.000105,2]
[329898991,1718807434078,-500.0,0.000105,2]
[329898992,1718807434087,-500.0,0.000105,2]
[329898993,1718807434096,-500.0,0.000105,2]
[329898994,1718807434106,-500.0,0.000105,2]
[329898995,1718807434115,-799.0,0.000105,2]
[329898996,1718807434125,-288.95,0.0001056,2]
[329898997,1718807434135,-288.95,0.00010588,2]
[329898998,1718807434144,-288.95,0.00010617,2]
[329898999,1718807434154,-288.95,0.00010646,2]
[329899000,1718807434163,-288.95,0.00010675,2]
[329899001,1718807434173,-288.95,0.00010704,2]
[329899002,1718807434183,-288.95,0.00010733,2]
[329899003,1718807434193,-288.95,0.00010762,2]
[329899004,1718807434202,-288.95,0.00010791,2]
[329899005,1718807434212,-200.0,0.00010796,2]
[329899006,1718807434221,-288.95,0.0001082,2]
[329899007,1718807434231,-288.95,0.00010849,2]
[329899008,1718807434240,-1304.75816031,0.00010851,2]
[329899009,1718807434250,-13317.241937,0.00010852,2]
[329899010,1718807434259,-23900.0,0.00010859,2]
[329899011,1718807434269,-288.95,0.00010878,2]
[329899012,1718807434279,-1000.0,0.0001089,2]
[329899013,1718807434289,-587.0,0.00010895,2]
[329899014,1718807434298,-293.0,0.00010895,2]
[329899015,1718807434313,-288.95,0.00010907,2]
[329899016,1718807434323,-288.95,0.00010936,2]
[329899017,1718807434332,-150.0,0.00010959,2]
[329899018,1718807434341,-12074.18,0.00010959,2]
[329899019,1718807434352,-225.93,0.00010959,2]
[329899020,1718807434362,-188.27,0.00010959,2]
[329899021,1718807434371,-156.9,0.00010959,2]
[329899022,1718807434381,-784.5,0.00010959,2]
[329899023,1718807434392,-288.95,0.00010965,2]
[329899024,1718807434402,-288.95,0.00010994,2]
[329899025,1718807434411,-288.95,0.00011023,2]
[329899026,1718807434423,-939.22,0.00011026,2]
[329899027,1718807434433,-288.95,0.00011052,2]
[329899028,1718807434442,-288.95,0.00011081,2]
[329899029,1718807434457,-288.95,0.0001111,2]
[329899030,1718807434467,-2346.76,0.00011122,2]
[329899031,1718807434477,-770.33,0.00011231,2]
[329899032,1718807434487,-1262.49708637,0.00011521,2]
[329899033,1718807434497,-2340.17611498,0.00011522,2]
[329899034,1718807434507,-1270.9,0.00011523,2]
[329899035,1718807434518,-167.65,0.00011727,2]
[329899036,1718807434528,-671.41567093,0.00011928,2]
[329899037,1718807434538,-671.41567093,0.00011928,2]
[329899038,1718807434548,-823.0,0.00011984,2]
[329899039,1718807434557,-247.0,0.00011984,2]
[329899040,1718807434568,-1000.0,0.00012,2]
[329899041,1718807434579,-161.1,0.00012036,2]
[329899042,1718807434589,-372.07,0.00012055,2]
[329899043,1718807434599,-161.1,0.00012056,2]
[329899044,1718807434608,-161.1,0.00012076,2]
[329899045,1718807434618,-161.1,0.00012096,2]
[329899046,1718807434629,-1000.0,0.000121,2]
[329899047,1718807434639,-701.06,0.00012692,2]
[329899048,1718807434650,-626.72009064,0.00013131,2]
[329899049,1718807434660,-1152.0,0.00013183,2]
[329899050,1718807434671,-202.70403289,0.00013222,2]
[329899051,1718807434681,-300.0,0.000133,4]
[329899052,1718807434691,-307.148,0.00013309,2]
[329899053,1718807434701,-1000.0,0.0001331,2]
[329899054,1718807434712,-383.65473788,0.00013336,2]
[329899055,1718807434722,-700.0,0.000134,4]
[329899056,1718807434732,-1007.62917227,0.00013424,2]
[329899057,1718807434742,-171.07258408,0.0001348,2]
[329899058,1718807434753,-216.25862862,0.0001348,2]
[329899059,1718807434763,-1100.0,0.000135,4]
[329899060,1718807434773,-216.25862855,0.0001354,2]
[329899061,1718807434783,-331.11276341,0.00013566,2]
[329899062,1718807434793,-150.0,0.00013575,2]
[329899063,1718807434803,-35009.9324,0.00013578,2]
[329899064,1718807434815,-1981.7326,0.00013578,2]
[329899065,1718807434825,-7913.8596,0.00013578,2]
[329899066,1718807434835,-179.6533468,0.0001358,2]
[329899067,1718807434845,-142278.7706,0.0001358,2]
[329899068,1718807434856,-181.27433181,0.0001358,2]
[329899069,1718807434866,-171.39309846,0.0001358,2]
[329899070,1718807434876,-151.0,0.0001358,2]
[329899071,1718807434887,-151.0,0.0001358,2]
[329899072,1718807434897,-151.0,0.0001358,2]
[329899073,1718807434907,-150.0,0.00013581,2]
[329899074,1718807434917,-216.25862855,0.000136,2]
[329899075,1718807434928,-1500.0,0.000136,4]
[329899076,1718807434938,-150.0,0.00013653,2]
[329899077,1718807434948,-216.25862855,0.0001366,2]
[329899078,1718807434958,-150.0,0.00013665,2]
[329899079,1718807434968,-4626.0467235,0.00013666,2]
[329899080,1718807434978,-216.4255137,0.0001367,2]
[329899081,1718807434988,-150.0,0.00013673,2]
[329899082,1718807434998,-193.07428128,0.00013678,2]
[329899083,1718807435008,-177.25837466,0.00013678,2]
[329899084,1718807435018,-606.33403502,0.00013678,2]
[329899085,1718807435028,-5590.9811096,0.00013678,2]
[329899086,1718807435038,-689.75981342,0.00013678,2]
[329899087,1718807435048,-205.21041243,0.00013678,2]
[329899088,1718807435058,-241.97650313,0.00013678,2]
[329899089,1718807435069,-8013.58006912,0.00013678,2]
[329899090,1718807435078,-10310.79487693,0.00013678,2]
[329899091,1718807435088,-338.17037854,0.00013678,2]
[329899092,1718807435098,-155.10494405,0.00013678,2]
[329899093,1718807435108,-604.95811385,0.00013678,2]
[329899094,1718807435118,-156.7012365,0.00013678,2]
[329899095,1718807435128,-210.50927714,0.00013678,2]
[329899096,1718807435138,-202.17182997,0.00013678,2]
[329899097,1718807435148,-2386.00563136,0.00013678,2]
[329899098,1718807435158,-970.58935417,0.00013678,2]
[329899099,1718807435168,-157.90766918,0.00013678,2]
[329899100,1718807435181,-627.68682444,0.00013678,2]
[329899101,1718807435191,-524.4208755,0.00013678,2]
[329899102,1718807435202,-1000.0,0.00013678,2]
[329899103,1718807435212,-276.19488064,0.00013678,2]
[329899104,1718807435222,-155.0,0.00013678,2]
[329899105,1718807435232,-155.0,0.00013678,2]
[329899106,1718807435242,-180.7446027,0.00013678,2]
[329899107,1718807435252,-181.71324199,0.00013678,2]
[329899108,1718807435262,-190.04026861,0.00013678,2]
[329899109,1718807435272,-206.44355968,0.00013678,2]
[329899110,1718807435282,-156.62934003,0.00013678,2]
[329899111,1718807435292,-1930.10625603,0.00013678,2]
[329899112,1718807435302,-194.02066443,0.00013678,2]
[329899113,1718807435312,-156.13216218,0.00013678,2]
[329899114,1718807435326,-155.41724428,0.00013678,2]
[329899115,1718807435336,-410.06375172,0.00013678,2]
[329899116,1718807435347,-244.4948077,0.00013678,2]
[329899117,1718807435358,-787.27907737,0.00013678,2]
[329899118,1718807435368,-155.0,0.00013678,2]
[329899119,1718807435379,-2144.48033818,0.00013678,2]
[329899120,1718807435390,-155.39701641,0.00013678,2]
[329899121,1718807435403,-1406.90313427,0.00013678,2]
[329899122,1718807435415,-215.95453193,0.00013678,2]
[329899123,1718807435427,-436.05693133,0.00013678,2]
[329899124,1718807435439,-250.35916501,0.00013678,2]
[329899125,1718807435448,-158.51831279,0.00013678,2]
[329899126,1718807435459,-412.41431636,0.00013678,2]
[329899127,1718807435469,-529.41988133,0.00013678,2]
[329899128,1718807435479,-253.68834548,0.00013678,2]
[329899129,1718807435489,-367.44072408,0.00013678,2]
[329899130,1718807435499,-824.09617178,0.00013678,2]
[329899131,1718807435509,-1798.31974733,0.00013678,2]
[329899132,1718807435519,-209.96401092,0.00013678,2]
[329899133,1718807435528,-1627.22993982,0.00013678,2]
[329899134,1718807435538,-206.29106117,0.00013678,2]
[329899135,1718807435548,-238.31120085,0.00013678,2]
[329899136,1718807435558,-8432.57580397,0.00013678,2]
[329899137,1718807435568,-646.72934013,0.00013678,2]
[329899138,1718807435578,-155.0,0.00013678,2]
[329899139,1718807435589,-4371.43292365,0.00013678,2]
[329899140,1718807435599,-169395.87976745,0.0001368,2]
[329899141,1718807435609,-735350.3450523,0.0001368,2]
[329899142,1718807435618,-151.0,0.0001368,2]
[329899143,1718807435628,-189.131022,0.0001368,2]
[329899144,1718807435638,-151.0,0.0001368,2]
[329899145,1718807435648,-167.65,0.00013682,2]
[329899146,1718807435658,-625.0,0.00013683,2]
[329899147,1718807435668,-7469.84,0.0001369,2]
[329899148,1718807435681,-2718.55321524,0.0001369,2]
[329899149,1718807435691,-150.0,0.00013691,2]
[329899150,1718807435701,-155.0,0.00013696,2]
[329899151,1718807435710,-182.35267965,0.00013697,2]
[329899152,1718807435719,-209.31609262,0.00013697,2]
[329899153,1718807435728,-5905.95140644,0.00013697,2]
[329899154,1718807435738,-537.79,0.00013698,2]
[329899155,1718807435748,-500.0,0.00013698,2]
[329899156,1718807435758,-720.64,0.00013698,2]
[329899157,1718807435768,-585.6,0.00013698,2]
[329899158,1718807435777,-763.0,0.00013698,2]
[329899159,1718807435787,-732.25,0.00013698,2]
[329899160,1718807435797,-500.0,0.00013698,2]
[329899161,1718807435807,-661.83,0.00013698,2]
[329899162,1718807435817,-998.41,0.00013698,2]
[329899163,1718807435827,-500.0,0.00013698,2]
[329899164,1718807435837,-500.0,0.00013698,2]
[329899165,1718807435846,-501.14,0.00013698,2]
[329899166,1718807435856,-199.13751333,0.00013698,2]
[329899167,1718807435866,-179.70543353,0.00013698,2]
[329899168,1718807435875,-500.0,0.00013698,2]
[329899169,1718807435885,-500.0,0.00013698,2]
[329899170,1718807435895,-663.74,0.00013698,2]
[329899171,1718807435905,-610.1,0.00013698,2]
[329899172,1718807435915,-500.0,0.00013698,2]
[329899173,1718807435926,-500.0,0.00013698,2]
[329899174,1718807435935,-539.11,0.00013698,2]
[329899175,1718807435945,-695.11,0.00013698,2]
[329899176,1718807435955,-713.61,0.00013698,2]
[329899177,1718807435965,-500.0,0.00013698,2]
[329899178,1718807435975,-500.0,0.00013698,2]
[329899179,1718807435984,-500.0,0.00013698,2]
[329899180,1718807435994,-500.0,0.00013698,2]
[329899181,1718807436004,-500.0,0.00013698,2]
[329899182,1718807436013,-500.0,0.00013698,2]
[329899183,1718807436023,-500.0,0.00013698,2]
[329899184,1718807436033,-469.26514675,0.00013698,2]
[329899185,1718807436043,-500.0,0.00013698,2]
[329899186,1718807436054,-771.58,0.00013698,2]
[329899187,1718807436064,-500.0,0.00013698,2]
[329899188,1718807436074,-500.0,0.00013698,2]
[329899189,1718807436084,-500.0,0.00013698,2]
[329899190,1718807436094,-500.0,0.00013698,2]
[329899191,1718807436103,-967.22,0.00013698,2]
[329899192,1718807436113,-545.22,0.00013698,2]
[329899193,1718807436123,-500.0,0.00013698,2]
[329899194,1718807436132,-500.0,0.00013698,2]
[329899195,1718807436142,-855.93,0.00013698,2]
[329899196,1718807436152,-500.0,0.00013698,2]
[329899197,1718807436162,-520.41,0.00013698,2]
[329899198,1718807436174,-500.0,0.00013698,2]
[329899199,1718807436183,-500.0,0.00013698,2]
[329899200,1718807436192,-500.0,0.00013698,2]
[329899201,1718807436202,-610.1,0.00013698,2]
[329899202,1718807436211,-500.0,0.00013698,2]
[329899203,1718807436220,-500.0,0.00013698,2]
[329899204,1718807436230,-745.45,0.00013698,2]
[329899205,1718807436240,-508.75,0.00013698,2]
[329899206,1718807436250,-572.52,0.00013698,2]
[329899207,1718807436259,-739.69,0.00013698,2]
[329899208,1718807436269,-500.0,0.00013698,2]
[329899209,1718807436279,-500.0,0.00013698,2]
[329899210,1718807436288,-500.0,0.00013698,2]
[329899211,1718807436298,-993.56,0.00013698,2]
[329899212,1718807436314,-500.0,0.00013698,2]
[329899213,1718807436324,-500.0,0.00013698,2]
[329899214,1718807436333,-500.0,0.00013698,2]
[329899215,1718807436343,-500.0,0.00013698,2]
[329899216,1718807436355,-500.0,0.00013698,2]
[329899217,1718807436365,-1091.15,0.00013698,2]
[329899218,1718807436376,-500.0,0.00013698,2]
[329899219,1718807436386,-501.41,0.00013698,2]
[329899220,1718807436396,-1049.89,0.00013698,2]
[329899221,1718807436405,-891.55,0.00013698,2]
[329899222,1718807436415,-500.0,0.00013698,2]
[329899223,1718807436427,-1262.6,0.00013698,2]
[329899224,1718807436438,-500.0,0.00013698,2]
[329899225,1718807436448,-636.65,0.00013698,2]
[329899226,1718807436457,-500.0,0.00013698,2]
[329899227,1718807436467,-500.0,0.00013698,2]
[329899228,1718807436476,-592.3,0.00013698,2]
[329899229,1718807436487,-500.0,0.00013698,2]
[329899230,1718807436497,-500.0,0.00013698,2]
[329899231,1718807436507,-500.0,0.00013698,2]
[329899232,1718807436516,-500.0,0.00013698,2]
[329899233,1718807436526,-500.0,0.00013698,2]
[329899234,1718807436536,-908.08,0.00013698,2]
[329899235,1718807436546,-572.92,0.00013698,2]
[329899236,1718807436556,-678.28,0.00013698,2]
[329899237,1718807436566,-500.0,0.00013698,2]
[329899238,1718807436575,-500.0,0.00013698,2]
[329899239,1718807436585,-1350.01,0.00013698,2]
[329899240,1718807436595,-562.31,0.00013698,2]
[329899241,1718807436605,-851.38,0.00013698,2]
[329899242,1718807436615,-871.64,0.00013698,2]
[329899243,1718807436624,-655.02,0.00013698,2]
[329899244,1718807436634,-500.0,0.00013698,2]
[329899245,1718807436643,-533.25,0.00013698,2]
[329899246,1718807436654,-1092.98,0.00013698,2]
[329899247,1718807436663,-500.0,0.00013698,2]
[329899248,1718807436675,-444.79637067,0.00013698,2]
[329899249,1718807436685,-500.0,0.00013698,2]
[329899250,1718807436695,-500.0,0.00013698,2]
[329899251,1718807436705,-1390.87193373,0.00013698,2]
[329899252,1718807437284,-293.93806627,0.00013698,2]
[329899253,1718807437295,-14.86935773,0.00013698,2]
[329899254,1718807437311,-333.83826426,0.00013698,2]
[329899255,1718807437326,-414.93237801,0.00013698,2]
[329899256,1718807437336,-418.42764031,0.00013698,2]
[329899257,1718807437347,-81.57235969,0.00013698,2]
[329899258,1718807437358,-455.54780215,0.00013698,2]
[329899259,1718807438057,-274.42219785,0.00013698,2]
[329899260,1718807438069,-774.74,0.00013698,2]
[329899261,1718807438079,-701.84,0.00013698,2]
[329899262,1718807438088,-500.0,0.00013698,2]
[329899263,1718807438098,-500.0,0.00013698,2]
[329899264,1718807438108,-437.38364594,0.00013698,2]
[329899265,1718807438120,-62.61635406,0.00013698,2]
[329899266,1718807438131,-768.3,0.00013698,2]
[329899267,1718807438141,-780.65,0.00013698,2]
[329899268,1718807438151,-715.68,0.00013698,2]
[329899269,1718807438160,-500.0,0.00013698,2]
[329899270,1718807438170,-500.0,0.00013698,2]
[329899271,1718807438182,-391.34403594,0.00013698,2]